bitfinex/quotes_ETHUSD_20240820
["timestamp","ask_amount","ask_price","bid_price","bid_amount"]
[1724167960420,9.2519,2586.6,2586.3,11.8105]
[1724167960669,7.7299,2586.5,2586.3,11.8105]
[1724167960983,7.7299,2586.5,2586.2,11.8105]
[1724167961745,7.6799,2586.5,2586.2,11.8105]
[1724167961944,7.6799,2586.5,2586.2,13.71855]
[1724167962836,7.6799,2586.5,2586.3,0.55]
[1724167963207,7.6799,2586.5,2586.2,13.71855]
[1724167963372,7.6799,2586.5,2586.2,11.8105]
[1724167963568,9.8985,2586.4,2586.2,11.8105]
[1724167963771,7.6799,2586.3,2586.2,11.8105]
[1724167964363,7.6799,2586.3,2586.2,12.3605]
[1724167968074,17.6273,2586.3,2586.2,11.8105]
[1724167968514,18.04457521,2586.3,2586.2,11.8105]
[1724167968667,19.84903273,2586.3,2586.2,11.8105]
[1724167968864,9.85163273,2586.3,2585.7,19.0805]
[1724167969065,9.6806,2586.2,2585.7,7.27]
[1724167969262,9.3043,2586.0,2585.4,7.27]
[1724167969595,9.3043,2585.8,2585.4,7.27]
[1724167969794,7.6299,2585.7,2585.4,7.27]
[1724167970011,9.2684,2585.6,2585.0,7.27]
[1724167970322,7.6299,2585.5,2585.0,7.27]
[1724167970462,9.8604,2585.4,2585.0,7.27]
[1724167970693,9.8604,2585.2,2585.0,7.27]
[1724167970978,17.4903,2585.1,2585.0,7.27]
[1724167971191,17.4903,2585.1,2584.8,11.8105]
[1724167971399,17.4903,2585.1,2584.8,12.99155]
[1724167973016,0.40536974,2585.0,2584.9,0.55]
[1724167973198,8.03526974,2585.0,2584.9,0.55]
[1724167974282,8.03526974,2585.0,2584.8,11.8105]
[1724167974910,8.03526974,2585.0,2584.6,11.8105]
[1724167975123,8.03526974,2585.0,2584.6,12.5375]
[1724167975590,8.03526974,2585.0,2584.7,0.55]
[1724167976301,8.03526974,2585.0,2584.6,11.8105]
[1724167976477,9.3211,2584.9,2584.6,11.8105]
[1724167976823,7.6299,2584.8,2584.6,11.8105]
[1724167977422,7.6299,2584.8,2584.6,13.71855]
[1724167978468,7.6299,2584.8,2584.3,12.37]
[1724167978672,7.6299,2584.8,2584.4,12.3605]
[1724167982107,9.2546,2584.7,2584.4,12.3605]
[1724167982339,9.2546,2584.7,2584.4,11.8105]
[1724167982340,7.6299,2584.6,2584.4,11.8105]
[1724167982856,7.6299,2584.6,2584.4,13.71855]
[1724167983835,7.6299,2584.6,2584.5,0.55]
[1724167987480,7.6299,2584.6,2584.5,9.96145626]
[1724167987647,9.8145,2586.6,2584.6,9.7223]
[1724167987841,0.7,2586.7,2584.8,9.3341]
[1724167987842,0.40532252,2585.7,2584.8,9.3341]
[1724167988048,9.8145,2585.8,2584.9,0.55]
[1724167988458,0.4053023,2585.7,2584.9,0.55]
[1724167990023,0.4053023,2585.7,2585.0,0.0773299]
[1724167990323,0.4053023,2585.7,2585.2,9.3405]
[1724167990626,0.4053023,2585.7,2585.3,1.61637237]
[1724167990785,0.4053023,2585.7,2585.3,1.53905]
[1724167990982,0.4053023,2585.7,2585.3,0.55]
[1724167991527,0.82257751,2585.7,2584.7,1.33496563]
[1724167992024,9.0883,2585.6,2584.7,1.33496563]
[1724167992223,9.50557521,2585.6,2584.7,1.33496563]
[1724167992627,9.0883,2585.6,2584.7,1.33496563]
[1724167992784,9.0883,2585.6,2584.8,1.61754656]
[1724167995124,0.4053023,2585.7,2584.8,1.61754656]
[1724167995325,0.4053023,2585.7,2584.9,0.07733585]
[1724167995487,0.4053023,2585.7,2585.0,0.55]
[1724167995679,0.4053023,2585.7,2584.8,1.61754656]
[1724167995885,0.4053023,2585.7,2585.1,0.07733043]
[1724167996085,0.4053023,2585.7,2585.2,0.55]
[1724167996287,0.4053023,2585.7,2585.3,1.04925942]
[1724167996495,0.4053023,2585.7,2585.4,0.55]
[1724167997884,0.4053023,2585.7,2585.5,0.07732309]
[1724167998124,0.4053023,2585.7,2585.6,0.55]
[1724167998339,0.4053023,2585.7,2585.4,0.62732289]
[1724167998707,9.5407,2586.3,2585.4,0.55]
[1724167999125,0.40525575,2586.1,2585.4,0.55]
[1724168003552,0.40525575,2586.1,2585.3,4.60593304]
[1724168003711,0.40525575,2586.1,2585.4,0.4605933]
[1724168004226,0.40525575,2586.1,2585.5,9.86871484]
[1724168004622,0.40525575,2586.1,2585.6,11.8105]
[1724168004938,0.40525575,2586.1,2585.6,11.88781497]
[1724168005761,0.40525575,2586.1,2585.7,0.55]
[1724168005966,0.40525575,2586.1,2585.8,1.2437815]
[1724168006125,0.40525575,2586.1,2585.9,0.55]
[1724168008029,9.9779,2586.0,2585.3,0.52193304]
[1724168008223,9.9779,2586.0,2585.0,3.0]
[1724168008933,9.9779,2586.0,2585.1,0.07732577]
[1724168009131,9.9779,2586.0,2585.0,7.084]
[1724168009364,9.9779,2586.0,2585.1,0.07732132]
[1724168009534,9.9779,2586.0,2585.2,4.084]
[1724168009734,9.9779,2586.0,2585.3,9.72992132]
[1724168010487,0.40525575,2586.1,2585.4,0.55]
[1724168010632,0.40525575,2586.1,2585.5,0.07731251]
[1724168010839,0.40525575,2586.1,2585.6,0.55]
[1724168013570,0.40525575,2586.1,2585.7,11.8105]
[1724168013777,0.40525575,2586.1,2585.8,0.55]
[1724168015668,9.2287,2586.0,2585.7,11.8105]
[1724168016400,9.2287,2586.0,2585.4,11.8105]
[1724168016606,9.64597521,2586.0,2585.4,11.8105]
[1724168016893,9.2287,2586.0,2585.4,11.8105]
[1724168017776,9.2287,2586.0,2585.5,0.55]
[1724168018475,9.2287,2586.0,2585.4,11.8105]
[1724168018476,10.19209558,2586.0,2585.4,11.8105]
[1724168019506,10.19209558,2586.0,2585.5,11.8105]
[1724168022331,9.2287,2586.0,2585.5,11.8105]
[1724168023128,7.7347,2585.9,2585.5,11.8105]
[1724168023827,7.7347,2585.9,2585.6,0.55]
[1724168023828,0.4053007,2585.8,2585.6,0.55]
[1724168023985,7.7347,2585.7,2585.6,0.55]
[1724168024329,7.7347,2585.7,2585.6,13.59655]
[1724168024633,7.7347,2585.7,2585.6,12.3605]
[1724168026531,7.7347,2585.7,2585.6,21.9222]
[1724168027565,0.4053007,2585.8,2585.6,26.0062]
[1724168027709,0.4053007,2585.8,2585.7,0.07730904]
[1724168027910,0.4053007,2585.8,2585.7,3.23565994]
[1724168028856,0.4053007,2585.8,2585.1,11.8105]
[1724168029061,9.534,2585.7,2584.7,9.9598]
[1724168030462,9.534,2585.7,2584.4,9.432]
[1724168030816,9.534,2585.7,2584.5,0.3882]
[1724168031058,9.534,2585.7,2584.6,0.9432]
[1724168031357,9.93932395,2585.7,2584.6,0.9432]
[1724168031957,9.93932395,2585.7,2584.7,0.55]
[1724168034543,9.93932395,2585.7,2584.8,11.8105]
[1724168034748,9.93932395,2585.7,2584.9,0.55]
[1724168034978,9.93932395,2585.7,2585.0,1.23605]
[1724168035192,9.93932395,2585.7,2585.1,0.55]
[1724168038479,9.93932395,2585.7,2584.9,0.55]
[1724168038952,9.93932395,2585.7,2585.0,11.8105]
[1724168039167,10.35659916,2585.7,2585.0,11.8105]
[1724168039367,10.72695992,2585.6,2585.0,11.8105]
[1724168041950,10.72695992,2585.6,2585.1,0.55]
[1724168043293,10.72695992,2585.6,2585.2,11.8105]
[1724168044029,9.6913,2585.6,2585.2,11.8105]
[1724168045646,9.5491,2585.4,2585.2,11.8105]
[1724168045809,7.7358,2585.3,2585.2,11.8105]
[1724168046331,7.7358,2585.3,2585.2,12.3605]
[1724168046504,7.7358,2585.3,2585.2,11.8105]
[1724168047438,17.2849,2585.3,2585.2,11.8105]
[1724168048525,9.0424,2585.2,2584.7,19.0805]
[1724168048707,7.7358,2585.1,2584.7,19.0805]
[1724168048909,9.0424,2585.0,2584.1,11.8105]
[1724168049230,8.50938,2585.1,2584.1,11.8105]
[1724168049231,9.0424,2584.8,2584.1,11.8105]
[1724168049438,0.77358,2585.1,2584.1,11.8105]
[1724168049439,9.0424,2584.6,2584.1,11.8105]
[1724168049633,7.7358,2584.5,2584.1,11.8105]
[1724168049933,7.7358,2584.5,2584.1,13.71855]
[1724168050521,7.7358,2584.5,2584.1,11.8105]
[1724168050727,9.5415,2584.4,2584.1,11.8105]
[1724168051045,9.5415,2584.4,2583.3,0.3882]
[1724168051252,9.5415,2584.4,2583.3,11.8105]
[1724168051621,9.5415,2584.2,2583.3,11.8105]
[1724168051800,7.7358,2584.1,2583.4,1.90805]
[1724168052513,9.5415,2584.0,2583.4,1.90805]
[1724168052824,7.7358,2583.9,2583.4,1.90805]
[1724168053144,7.7358,2583.9,2583.2,3.0]
[1724168053145,9.5415,2583.8,2583.2,3.0]
[1724168053357,9.5415,2583.8,2583.1,11.8105]
[1724168053667,7.7358,2583.7,2583.1,11.8105]
[1724168054147,9.5415,2583.6,2583.2,11.8105]
[1724168054453,7.7358,2583.5,2583.2,11.8105]
[1724168055052,7.7358,2583.5,2583.3,0.55]
[1724168058249,7.7358,2583.5,2583.4,11.8105]
[1724168058417,7.7358,2583.5,2583.4,12.3605]
[1724168058628,7.7358,2583.5,2583.4,13.59655]
[1724168058833,7.7358,2583.5,2583.4,12.3605]
[1724168059049,17.6112,2583.5,2583.4,11.8105]
[1724168060207,0.7,2583.3,2583.1,11.8105]
[1724168060414,17.6066,2583.2,2583.0,748.9584855]
[1724168060769,9.8708,2583.1,2583.0,748.9584855]
[1724168060902,9.8708,2583.1,2583.0,752.69380104]
[1724168061149,17.6066,2583.1,2583.0,752.69380104]
[1724168061348,17.6056,2583.1,2583.0,752.69380104]
[1724168062153,7.7358,2583.1,2583.0,765.05430104]
[1724168067487,7.7358,2583.1,2583.0,778.85950104]
[1724168067667,7.7358,2583.1,2583.0,782.24770104]
[1724168068759,0.7,2583.9,2583.6,4.0747]
[1724168069001,0.7,2583.9,2583.7,5.03217]
[1724168070753,9.9537,2583.8,2583.7,5.03217]
[1724168071102,0.7,2583.6,2583.5,4.0747]
[1724168072548,0.7,2583.9,2583.5,4.0747]
[1724168073057,0.7,2583.9,2583.6,4.6247]
[1724168073257,0.7,2583.9,2583.7,0.87087]
[1724168073404,0.7,2583.9,2583.8,0.55]
[1724168074726,10.0,2586.3,2583.8,0.55]
[1724168074727,0.7,2584.6,2583.8,18.1136]
[1724168074926,0.7,2584.6,2583.9,4.15205971]
[1724168075172,0.7,2584.6,2584.0,2.36909597]
[1724168075354,0.7,2584.6,2584.1,4.0747]
[1724168075674,0.7,2584.6,2584.2,0.55]
[1724168076965,0.7,2584.6,2584.2,4.6247]
[1724168077167,0.7,2584.6,2584.3,0.07736177]
[1724168077369,9.9792,2585.0,2584.4,0.9382]
[1724168077573,9.9792,2585.0,2584.5,4.0747]
[1724168077867,9.9792,2585.0,2584.6,0.55]
[1724168078084,0.40522147,2585.3,2584.7,13.3431]
[1724168078227,0.7,2585.6,2584.8,2.34678]
[1724168078575,1.10516475,2585.6,2584.9,4.0747]
[1724168078737,1.10516475,2585.6,2585.0,0.55]
[1724168081065,0.7,2585.6,2585.1,4.0747]
[1724168081267,0.7,2585.6,2585.2,1.32020395]
[1724168082380,0.7,2586.0,2585.3,9.7153293]
[1724168082543,0.7,2586.0,2585.4,3.55]
[1724168082744,0.7,2586.0,2585.5,4.0747]
[1724168082957,0.7,2586.0,2585.6,1.31247]
[1724168084930,9.1565,2586.3,2585.7,4.0747]
[1724168085156,1.10511103,2586.4,2585.8,0.55]
[1724168087964,1.10511103,2586.4,2585.9,4.0747]
[1724168088166,0.7,2586.1,2586.0,0.55]
[1724168088369,0.7,2586.1,2586.0,5.14217]
[1724168088536,0.7,2586.1,2586.0,4.59217]
[1724168088537,9.8518,2586.1,2586.0,4.59217]
[1724168089070,9.8518,2586.1,2586.0,4.0747]
[1724168089238,0.7,2585.8,2585.7,4.0747]
[1724168089777,9.8518,2585.8,2585.7,4.0747]
[1724168090441,9.8518,2585.8,2585.2,8.04020395]
[1724168090442,9.8518,2585.8,2585.6,4.0747]
[1724168091877,0.7,2585.3,2585.2,0.77020395]
[1724168092188,0.7,2585.3,2584.6,4.0747]
[1724168092692,3.40511103,2586.4,2584.8,9.06]
[1724168092693,0.7,2585.9,2584.8,9.06]
[1724168092839,0.7,2585.9,2584.7,4.93234643]
[1724168092840,0.7,2585.9,2585.1,9.6763]
[1724168093040,0.7,2585.9,2585.2,3.62732614]
[1724168093398,0.7,2585.9,2585.3,1.40768873]
[1724168093553,0.7,2585.9,2585.4,0.55]
[1724168093883,9.8804,2586.2,2585.5,4.15202618]
[1724168094086,0.7,2586.3,2585.6,14.7272]
[1724168094382,0.7,2586.3,2585.7,0.07731834]
[1724168094587,0.7,2586.3,2585.8,0.62731832]
[1724168095760,0.7,2586.3,2585.8,0.55]
[1724168099913,0.7,2586.3,2585.9,4.0747]
[1724168100243,0.7,2586.3,2586.0,0.55]
[1724168100417,0.7,2586.3,2586.1,4.0747]
[1724168100579,0.7,2586.3,2586.2,1.01247]
[1724168101608,10.6063,2586.3,2586.2,0.55]
[1724168104091,0.7,2586.3,2586.2,4.6247]
[1724168106393,10.2776,2586.3,2586.2,4.6247]
[1724168107196,10.2776,2586.3,2586.2,4.0747]
[1724168109011,10.2776,2586.3,2586.2,4.48217]
[1724168109212,10.2776,2586.3,2586.2,5.03217]
[1724168109415,0.7,2586.3,2586.2,5.03217]
[1724168115766,0.7,2586.7,2586.2,5.03217]
[1724168115929,0.7,2586.7,2586.3,1.13052547]
[1724168116559,0.7,2586.7,2586.3,10.335917]
[1724168116917,0.7,2587.0,2586.4,4.54020414]
[1724168117119,0.40509984,2587.3,2586.4,4.54020414]
[1724168117120,1.10509984,2587.3,2586.5,11.7087]
[1724168117344,9.5431,2587.5,2586.6,15.35890348]
[1724168117637,0.7,2587.3,2586.7,3.9382]
[1724168119450,0.7,2587.0,2586.7,3.9382]
[1724168119652,0.7,2587.0,2586.7,0.55]
[1724168119884,0.7,2587.0,2586.8,0.47674198]
[1724168120046,0.7,2587.0,2586.9,0.55]
[1724168120597,10.2431,2587.3,2586.9,0.55]
[1724168120758,10.2431,2587.3,2586.9,4.6247]
[1724168120959,10.2431,2587.3,2587.0,0.5101442]
[1724168121160,10.2431,2587.3,2587.1,4.6247]
[1724168121986,10.2431,2587.3,2587.1,4.0747]
[1724168125124,0.7,2586.6,2586.5,4.0747]
[1724168125288,10.3662,2586.6,2586.5,4.6247]
[1724168125598,10.3662,2586.2,2586.1,4.0747]
[1724168127966,10.3662,2586.2,2586.1,4.6247]
[1724168131968,10.45785981,2586.2,2586.1,4.6247]
[1724168132164,0.79165981,2586.2,2586.1,4.6247]
[1724168132730,0.79154353,2586.2,2586.1,4.6247]
[1724168132895,0.79154353,2586.2,2586.1,6.03957]
[1724168133093,0.79154353,2586.2,2586.1,4.6247]
[1724168133277,0.7,2586.2,2586.1,4.6247]
[1724168135320,0.40514999,2586.8,2585.8,4.0747]
[1724168135321,0.7,2585.9,2585.8,4.0747]
[1724168135694,0.79187359,2585.9,2585.8,4.0747]
[1724168135873,0.79187359,2585.9,2585.8,4.78217]
[1724168136467,0.7,2585.9,2585.8,4.78217]
[1724168136667,0.7,2585.9,2585.8,5.33217]
[1724168138023,0.7,2585.9,2585.8,4.0747]
[1724168138187,9.8676,2585.6,2585.4,4.0747]
[1724168138394,10.35315204,2585.6,2585.4,4.0747]
[1724168138588,0.0918448,2585.5,2585.4,4.0747]
[1724168138992,0.7,2585.1,2585.0,4.0747]
[1724168139191,9.9298,2585.1,2585.0,4.0747]
[1724168139383,10.02128565,2585.1,2585.0,4.0747]
[1724168140277,0.79148565,2585.1,2585.0,4.0747]
[1724168140478,0.79148565,2585.1,2585.0,4.48217]
[1724168140704,0.7,2585.4,2585.0,4.48217]
[1724168140925,0.7,2585.4,2585.1,0.07734005]
[1724168141283,0.7,2585.4,2585.0,4.48217]
[1724168141576,0.7,2585.4,2585.2,0.55]
[1724168141898,0.7,2585.4,2585.1,0.55]
[1724168142107,0.7,2585.4,2585.2,0.503217]
[1724168142428,0.7,2585.4,2585.3,0.55]
[1724168143497,0.7,2585.4,2585.3,4.6247]
[1724168143677,0.7,2585.4,2585.3,4.70204512]
[1724168143900,0.7,2585.5,2585.3,4.70204512]
[1724168144098,0.7,2585.5,2585.4,0.52052621]
[1724168144322,0.7,2585.5,2585.4,1.07052621]
[1724168145596,0.78855238,2585.5,2585.4,5.14522621]
[1724168145798,0.7,2585.5,2585.4,5.14522621]
[1724168146811,0.7,2585.5,2585.4,5.22255761]
[1724168147033,0.7,2585.5,2585.4,5.14522621]
[1724168147327,0.78831851,2585.5,2585.4,5.14522621]
[1724168149328,0.78831851,2585.5,2585.4,4.6247]
[1724168152869,0.08831851,2585.5,2585.4,4.6247]
[1724168153229,0.7,2585.8,2585.4,4.6247]
[1724168153471,0.7,2585.8,2585.5,4.6247]
[1724168153472,0.08872181,2585.7,2585.5,4.6247]
[1724168153827,0.7,2585.8,2585.5,4.6247]
[1724168154027,0.08843622,2585.7,2585.6,0.46247]
[1724168154243,0.7,2585.8,2585.6,1.01247]
[1724168154463,0.7,2585.8,2585.7,0.55]
[1724168156174,0.7,2586.1,2585.8,4.0747]
[1724168156387,0.7,2586.1,2585.9,1.01247]
[1724168158577,0.7,2586.1,2585.8,4.0747]
[1724168158779,9.7377,2586.0,2585.8,4.0747]
[1724168159480,9.7377,2586.0,2585.9,4.0747]
[1724168160452,9.82705864,2586.0,2585.9,4.0747]
[1724168160799,0.7,2585.4,2585.3,4.0747]
[1724168161164,0.78882209,2585.4,2585.3,4.0747]
[1724168161471,0.78882209,2585.4,2585.3,5.20917]
[1724168161655,0.7,2585.4,2585.3,5.20917]
[1724168161853,0.7,2585.4,2585.3,5.75917]
[1724168162261,0.7,2585.4,2585.3,4.0747]
[1724168162555,0.78849014,2585.4,2585.3,4.0747]
[1724168162889,0.7,2585.4,2585.3,4.0747]
[1724168163392,0.78841575,2585.4,2585.3,4.0747]
[1724168164397,0.78841575,2585.4,2585.3,4.70205135]
[1724168164600,0.78841575,2585.4,2585.3,5.82190513]
[1724168165563,0.78841575,2585.4,2585.3,4.6247]
[1724168166261,0.7,2586.2,2585.3,18.5585]
[1724168166494,0.7,2586.2,2585.5,4.084]
[1724168166495,0.08918224,2586.1,2585.5,4.084]
[1724168166824,0.08918224,2586.1,2585.7,9.0505]
[1724168167315,0.08918224,2586.1,2585.8,0.55]
[1724168169576,0.08918224,2586.1,2585.7,0.55]
[1724168171093,0.7,2585.9,2585.6,0.47113215]
[1724168171409,0.7,2585.9,2585.7,4.0747]
[1724168171614,0.08864168,2585.8,2585.7,4.0747]
[1724168171958,0.7,2585.9,2585.7,4.0747]
[1724168173015,0.7,2585.9,2585.8,0.55]
[1724168173585,0.7,2585.9,2585.8,4.6247]
[1724168173918,0.7,2585.9,2585.8,4.0747]
[1724168174271,0.7,2585.4,2584.8,13.0921]
[1724168174476,0.0888796,2585.3,2584.8,9.0174]
[1724168174710,0.7,2585.0,2584.6,0.3882]
[1724168175016,0.7,2585.0,2584.7,0.94056]
[1724168175729,0.08807512,2584.9,2584.7,0.94056]
[1724168176906,0.08807512,2584.9,2584.8,0.55]
[1724168177847,0.7,2585.4,2584.8,0.55]
[1724168178196,0.08539138,2585.3,2584.8,0.55]
[1724168178593,0.7,2585.1,2584.8,0.55]
[1724168179211,0.08552499,2585.0,2584.8,0.55]
[1724168180151,0.08552499,2585.0,2584.9,4.0747]
[1724168180359,0.7,2585.4,2584.9,14.391826]
[1724168180650,0.7,2585.4,2585.0,3.55]
[1724168183240,0.7,2585.1,2585.0,0.95747]
[1724168184036,0.7,2585.1,2584.7,0.94056]
[1724168185466,0.7,2585.1,2584.8,0.55]
[1724168187464,0.7,2585.1,2584.6,0.55]
[1724168195817,0.7,2585.4,2584.8,0.3882]
[1724168196128,0.0800817,2585.3,2584.9,1.582]
[1724168196494,0.7,2585.4,2584.9,1.582]
[1724168197261,0.07737267,2585.3,2584.9,1.582]
[1724168197805,0.7,2585.4,2584.9,1.582]
[1724168198004,0.7,2585.4,2585.0,0.90542]
[1724168198260,0.7,2585.4,2585.1,0.55]
[1724168199003,9.0149,2585.3,2585.1,0.55]
[1724168199201,0.7,2585.4,2585.1,0.55]
[1724168199406,0.07710379,2585.2,2585.1,0.55]
[1724168199614,0.7,2585.4,2585.1,0.55]
[1724168199852,0.07713984,2585.2,2585.1,0.55]
[1724168200016,0.7,2585.4,2585.1,0.55]
[1724168200217,0.07717589,2585.2,2585.1,0.55]
[1724168200422,0.7,2585.4,2584.9,0.55]
[1724168200742,0.07731551,2585.3,2585.0,0.355]
[1724168201046,0.07731551,2585.3,2585.1,0.55]
[1724168201840,0.07731551,2585.3,2584.9,3.55]
[1724168202247,0.07731551,2585.3,2584.9,7.634]
[1724168204906,0.07731551,2585.3,2584.9,3.55]
[1724168209011,0.07731551,2585.3,2585.2,4.4722]
[1724168209213,0.07731551,2585.3,2585.2,19.00424301]
[1724168209418,10.572,2586.4,2585.4,4.4722]
[1724168209650,10.572,2586.4,2585.6,4.4722]
[1724168209850,0.07573603,2586.3,2585.7,3.4655208]
[1724168210009,10.572,2586.4,2585.8,1.30495208]
[1724168210211,10.572,2586.4,2585.9,0.0773208]
[1724168210509,10.572,2586.4,2586.0,0.55]
[1724168210714,10.572,2586.4,2586.1,0.07732085]
[1724168210923,9.872,2586.4,2586.2,0.55]
[1724168211255,0.429603,2587.4,2586.4,13.3065]
[1724168211256,0.7,2587.3,2586.4,13.3065]
[1724168211465,0.7,2587.3,2586.5,9.04194145]
[1724168212405,0.7,2587.3,2586.5,9.43014145]
[1724168212695,0.7,2587.3,2586.5,9.35285]
[1724168213402,0.7,2587.3,2586.5,5.26885]
[1724168213610,10.0666,2587.6,2586.6,1.934435]
[1724168213900,10.0666,2587.6,2586.7,0.62728613]
[1724168214051,10.0666,2587.6,2586.7,3.62728613]
[1724168214256,10.0666,2587.6,2586.8,0.59499211]
[1724168214552,10.0666,2587.6,2586.9,0.55]
[1724168216012,0.7,2587.9,2586.9,0.55]
[1724168216170,10.5927,2587.9,2587.0,4.93027007]
[1724168216502,10.5927,2587.9,2587.1,5.07877701]
[1724168217598,9.8927,2587.9,2587.1,5.07877701]
[1724168217971,10.42776344,2588.2,2587.1,5.15605351]
[1724168218312,10.0228,2588.2,2587.1,5.54425351]
[1724168218472,10.0228,2588.2,2587.2,1.03972535]
[1724168218672,10.0228,2588.2,2587.3,0.55]
[1724168219109,9.3228,2588.2,2587.4,9.5335]
[1724168219307,9.3228,2588.2,2587.5,3.55]
[1724168220274,0.07398006,2588.1,2587.5,3.55]
[1724168220478,0.07398006,2588.1,2587.6,1.30835]
[1724168220671,0.07398006,2588.1,2587.7,0.55]
[1724168221111,0.77398006,2588.1,2587.7,0.55]
[1724168221264,0.77398006,2588.1,2587.3,3.0]
[1724168221614,0.77398006,2588.1,2587.2,4.03972535]
[1724168221758,0.77398006,2588.1,2587.3,1.56433024]
[1724168221955,0.07398006,2588.1,2587.3,4.56433024]
[1724168222183,0.07398006,2588.1,2587.4,0.3881]
[1724168222360,9.3228,2588.2,2587.4,0.3881]
[1724168222569,9.3228,2588.2,2587.3,4.56433024]
[1724168222771,0.7,2588.1,2587.3,4.56433024]
[1724168223100,0.7,2588.1,2587.4,0.55]
[1724168223101,9.2075,2588.0,2587.4,0.55]
[1724168223474,0.07408766,2587.9,2587.4,0.55]
[1724168224898,0.07408766,2587.9,2587.2,0.55]
[1724168225064,0.07408766,2587.9,2587.2,1.07411]
[1724168225659,0.07408766,2587.9,2587.2,1.46221]
[1724168225894,0.07408766,2587.9,2587.4,0.3881]
[1724168226056,0.07408766,2587.9,2587.5,0.62726244]
[1724168226258,9.9476,2588.3,2587.6,0.40153624]
[1724168226460,0.07375588,2587.8,2587.7,0.55]
[1724168226661,9.9476,2588.3,2587.7,0.55]
[1724168226861,0.0736869,2587.8,2587.7,0.55]
[1724168227098,9.9476,2588.3,2587.7,0.55]
[1724168227777,0.07389492,2588.2,2587.7,0.55]
[1724168228667,0.07389492,2588.2,2587.8,0.50355362]
[1724168228867,0.07389492,2588.2,2587.9,0.55]
[1724168229064,9.9476,2588.3,2587.9,0.55]
[1724168229266,0.07405272,2588.1,2587.9,0.55]
[1724168229522,9.9476,2588.3,2587.9,0.55]
[1724168229820,0.7,2588.4,2587.9,0.55]
[1724168230024,0.07406283,2588.2,2588.0,1.06651536]
[1724168230309,0.7,2588.4,2588.1,0.55]
[1724168230742,9.1095,2588.9,2588.2,0.07725717]
[1724168231038,9.1095,2588.9,2588.3,0.9381]
[1724168231180,9.1095,2588.9,2588.4,0.80221]
[1724168231380,9.1095,2588.9,2588.5,0.55]
[1724168232641,9.4194,2588.6,2588.5,0.55]
[1724168233536,9.8318,2588.9,2588.5,0.55]
[1724168234757,9.8318,2589.3,2588.6,0.07724607]
[1724168235039,9.8318,2589.3,2588.7,0.55]
[1724168235398,0.07504404,2589.2,2588.7,0.55]
[1724168235599,9.7181,2589.1,2588.7,0.55]
[1724168235799,0.07504404,2589.2,2588.7,0.55]
[1724168235800,9.7181,2588.8,2588.7,0.55]
[1724168236042,9.7181,2588.8,2587.9,3.0]
[1724168236211,9.79276233,2588.8,2588.0,1.25385536]
[1724168236539,9.79276233,2588.8,2587.8,0.50355362]
[1724168236703,9.79276233,2588.8,2587.6,3.0]
[1724168236899,9.3147,2588.3,2587.6,3.0]
[1724168237117,0.0741846,2588.2,2587.6,3.0]
[1724168237738,0.0741846,2588.2,2587.4,0.3881]
[1724168237943,0.0741846,2588.2,2587.5,0.52411]
[1724168239031,10.0147,2588.1,2587.5,0.52411]
[1724168239366,0.7,2587.8,2587.0,0.3881]
[1724168239845,0.07379631,2587.7,2587.0,0.3881]
[1724168240474,0.07379631,2587.7,2587.0,3.3881]
[1724168240835,0.07379631,2587.7,2587.1,1.68166]
[1724168241036,9.1829,2587.6,2587.1,1.29356]
[1724168241248,9.25708691,2587.6,2587.1,1.29356]
[1724168241774,9.25708691,2587.6,2586.8,0.3881]
[1724168241775,0.7,2587.4,2586.8,0.3881]
[1724168242075,9.0931,2587.3,2586.2,0.3881]
[1724168242262,9.16686409,2587.3,2586.2,0.3881]
[1724168242465,9.16686409,2587.3,2586.3,1.84046]
[1724168242466,0.7,2587.0,2586.3,1.84046]
[1724168242688,9.5869,2586.9,2586.3,1.84046]
[1724168242988,0.07353839,2586.9,2586.3,1.84046]
[1724168243422,0.07353839,2586.9,2586.5,0.3881]
[1724168244216,9.5869,2587.5,2586.6,0.98949796]
[1724168244418,9.5869,2587.5,2586.6,0.91221]
[1724168244574,0.07373676,2587.4,2586.7,0.55]
[1724168246215,0.07373676,2587.4,2586.6,0.91221]
[1724168246216,0.7,2587.2,2586.6,10.34921]
[1724168246399,0.07350035,2587.3,2586.6,0.52411]
[1724168246601,9.2444,2587.5,2586.7,0.07728451]
[1724168246783,0.07375774,2587.2,2586.7,5.2411]
[1724168246986,9.2444,2587.5,2586.8,0.58424992]
[1724168247164,9.2444,2587.5,2586.7,0.3881]
[1724168247165,0.07368351,2587.1,2586.7,0.3881]
[1724168247368,0.07368351,2587.1,2586.4,4.853]
[1724168247369,9.9444,2587.5,2586.8,0.55]
[1724168247585,9.8599,2587.1,2586.4,3.3881]
[1724168247898,9.8599,2587.1,2586.4,0.3881]
[1724168248105,0.07409179,2587.0,2586.4,0.3881]
[1724168248681,9.8599,2587.1,2586.4,0.3881]
[1724168248907,9.8599,2587.1,2586.5,0.9381]
[1724168250821,9.8599,2587.1,2586.6,0.57911]
[1724168251028,0.7,2587.6,2586.7,0.55]
[1724168251170,0.40488685,2587.9,2586.9,0.3881]
[1724168251171,0.07408869,2587.0,2586.9,0.3881]
[1724168251366,9.3335,2587.8,2586.9,4.01538005]
[1724168251720,0.07430886,2587.7,2587.0,6.58109801]
[1724168251933,0.07430886,2587.7,2587.2,0.3881]